bitfinex-derivatives/quotes_BTCF0:USTF0_20251209
["timestamp","ask_amount","ask_price","bid_price","bid_amount"]
[1765318176008,0.67664,92775.0,92774.0,0.704419]
[1765318176203,1.03744,92775.0,92774.0,0.704419]
[1765318177606,1.03744,92775.0,92774.0,0.706419]
[1765318177805,1.03744,92775.0,92774.0,0.69564]
[1765318178108,0.67664,92775.0,92774.0,0.69564]
[1765318178409,0.67664,92775.0,92774.0,0.69664]
[1765318178800,0.67664,92775.0,92774.0,0.69464]
[1765318179014,0.67664,92775.0,92774.0,0.69664]
[1765318179509,0.67664,92775.0,92774.0,0.69564]
[1765318179706,0.67664,92775.0,92774.0,0.69664]
[1765318180502,0.67664,92775.0,92774.0,0.69464]
[1765318180711,0.67664,92775.0,92774.0,0.69564]
[1765318181800,0.67664,92775.0,92766.0,0.25716726]
[1765318181801,1.17908,92775.0,92766.0,0.05026726]
[1765318181996,1.17908,92775.0,92766.0,0.02659539]
[1765318181997,1.0482199,92767.0,92766.0,0.02659539]
[1765318182306,0.687422,92749.0,92748.0,0.00021542]
[1765318182513,0.68750987,92749.0,92748.0,0.00021542]
[1765318182705,0.36088787,92749.0,92748.0,0.69385542]
[1765318182900,8.787e-05,92749.0,92748.0,0.69385542]
[1765318183904,8.787e-05,92749.0,92748.0,1.05465542]
[1765318184811,8.787e-05,92749.0,92748.0,1.05665542]
[1765318185115,8.787e-05,92749.0,92748.0,1.05765542]
[1765318185513,8.787e-05,92749.0,92748.0,1.05665542]
[1765318188611,0.00016167,92758.0,92757.0,0.911321]
[1765318188803,0.00016167,92758.0,92757.0,1.774601]
[1765318191414,0.00016167,92758.0,92757.0,1.775601]
[1765318195217,0.00016167,92758.0,92757.0,1.83364552]
[1765318196410,0.00016167,92758.0,92757.0,1.775601]
[1765318197220,0.00016167,92758.0,92757.0,2.125601]
[1765318198617,0.00016167,92758.0,92757.0,1.995601]
[1765318198818,0.00016167,92758.0,92757.0,1.775601]
[1765318200610,0.00016167,92758.0,92757.0,2.205601]
[1765318200811,0.66915167,92758.0,92757.0,1.568701]
[1765318201219,0.66915167,92758.0,92757.0,1.207901]
[1765318201412,0.66915167,92758.0,92757.0,0.001]
[1765318201616,0.66899,92749.0,92748.0,0.35544542]
[1765318201819,0.66899,92749.0,92748.0,0.70901542]
[1765318202018,1.02979,92749.0,92748.0,0.70901542]
[1765318203225,0.3608,92749.0,92748.0,0.70901542]
[1765318203523,0.3608,92749.0,92748.0,0.71001542]
[1765318203826,0.05,92757.0,92756.0,0.7088]
[1765318204016,0.05,92757.0,92756.0,0.7195811]
[1765318204416,0.00016167,92758.0,92757.0,0.90556]
[1765318206322,0.00116167,92758.0,92757.0,0.90556]
[1765318206626,0.00216167,92758.0,92757.0,0.90556]
[1765318206831,0.34640167,92758.0,92757.0,0.90556]
[1765318208829,0.67115167,92758.0,92757.0,0.90556]
[1765318209031,1.03195167,92758.0,92757.0,0.90556]
[1765318209619,1.03195167,92758.0,92757.0,0.92289]
[1765318209815,0.70720167,92758.0,92757.0,0.92289]
[1765318210018,0.70720167,92758.0,92757.0,1.31289]
[1765318210019,0.00216167,92758.0,92757.0,1.31289]
[1765318210725,0.33220167,92758.0,92757.0,0.92289]
[1765318210923,0.68529167,92758.0,92757.0,0.92289]
[1765318211131,0.68429167,92758.0,92757.0,0.92289]
[1765318211624,0.68329167,92758.0,92757.0,0.92289]
[1765318211814,0.68429167,92758.0,92757.0,0.92289]
[1765318213021,0.68529167,92758.0,92757.0,0.92289]
[1765318213222,0.68429167,92758.0,92757.0,0.92289]
[1765318213614,0.68529167,92758.0,92757.0,0.92289]
[1765318214028,0.68429167,92758.0,92757.0,0.92289]
[1765318214231,0.68529167,92758.0,92757.0,0.92289]
[1765318214429,0.35554142,92759.0,92758.0,0.6926109]
[1765318214629,0.33004,92778.0,92777.0,0.6926087]
[1765318215033,0.05,92783.0,92782.0,0.6926081]
[1765318215326,0.3608,92795.0,92789.0,0.6926073]
[1765318215721,0.05,92794.0,92789.0,0.6926073]
[1765318215921,0.05,92794.0,92789.0,0.70332657]
[1765318216121,0.05,92794.0,92789.0,0.74203023]
[1765318216734,0.33111771,92790.0,92789.0,0.74203023]
[1765318217133,0.33111771,92790.0,92789.0,0.70332657]
[1765318217344,0.33111771,92790.0,92789.0,0.74203023]
[1765318218134,0.33111771,92790.0,92789.0,0.70332657]
[1765318218333,0.33111771,92790.0,92789.0,0.74203023]
[1765318218919,0.00107771,92790.0,92789.0,1.20580657]
[1765318219127,0.00016167,92799.0,92798.0,0.7116263]
[1765318219436,0.00016167,92799.0,92798.0,1.5748663]
[1765318219637,0.70114167,92799.0,92798.0,1.5748663]
[1765318220940,0.70114167,92799.0,92798.0,1.5758663]
[1765318221142,0.70114167,92799.0,92798.0,1.5768663]
[1765318221344,0.91582167,92799.0,92798.0,1.20529]
[1765318221533,0.70114167,92799.0,92798.0,1.20529]
[1765318221733,0.70214167,92799.0,92798.0,1.20429]
[1765318222439,0.70214167,92799.0,92798.0,1.20329]
[1765318222440,0.70114167,92799.0,92798.0,1.20329]
[1765318222642,0.70114167,92799.0,92798.0,1.20429]
[1765318223140,0.70114167,92799.0,92798.0,1.20629]
[1765318225239,0.70114167,92799.0,92798.0,1.20729]
[1765318225743,0.70114167,92799.0,92798.0,1.20721]
[1765318229641,0.00016167,92799.0,92798.0,1.20721]
[1765318230148,0.75098,92812.0,92811.0,0.7116248]
[1765318231243,0.05,92812.0,92811.0,0.7116248]
[1765318231447,0.051,92812.0,92811.0,0.7116248]
[1765318231650,0.001,92812.0,92811.0,0.7116248]
[1765318231949,0.001,92812.0,92811.0,1.0724248]
[1765318232651,0.00107742,92815.0,92814.0,0.7116244]
[1765318232842,0.35454742,92815.0,92814.0,0.7116244]
[1765318233339,0.00016167,92821.0,92820.0,0.9257137]
[1765318233537,0.00016167,92821.0,92820.0,1.2865137]
[1765318233741,0.00016167,92821.0,92820.0,1.7887937]
[1765318233948,0.3608,92839.0,92820.0,1.7887937]
[1765318233949,0.75098,92836.0,92835.0,0.711622]
[1765318234545,0.75098,92836.0,92835.0,0.70085]
[1765318235140,0.75198,92836.0,92835.0,0.70085]
[1765318235340,0.75298,92836.0,92835.0,0.70085]
[1765318236051,0.75298,92836.0,92835.0,0.3509]
[1765318236246,0.75298,92836.0,92835.0,0.70085]
[1765318237249,0.002,92836.0,92835.0,1.20309]
[1765318237447,0.002,92836.0,92835.0,1.56309]
[1765318237642,0.00016103,92845.0,92844.0,0.70085]
[1765318237953,0.75098,92861.0,92860.0,0.70085]
[1765318238349,0.75098,92861.0,92860.0,0.7116191]
[1765318238553,0.40347,92861.0,92860.0,0.7116191]
[1765318238753,0.75098,92861.0,92860.0,0.70085]
[1765318239140,0.05,92861.0,92860.0,0.70085]
[1765318239350,0.0500163,92880.0,92864.0,0.91536]
[1765318239649,0.70098,92880.0,92879.0,0.70085]
[1765318239839,0.75098,92880.0,92879.0,0.7116169]
[1765318240544,0.75098,92880.0,92879.0,0.70085]
[1765318240946,0.75398,92880.0,92879.0,0.70085]
[1765318241151,0.70098,92873.0,92872.0,0.7116176]
[1765318241849,0.70098,92873.0,92872.0,0.9223676]
[1765318242648,0.70198,92873.0,92872.0,0.9223676]
[1765318243258,0.70398,92873.0,92872.0,0.9223676]
[1765318244250,0.70398,92873.0,92872.0,0.7116176]
[1765318247049,0.70398,92873.0,92870.0,0.36096157]
[1765318247050,0.3608,92884.0,92883.0,0.9261264]
[1765318247253,0.0107643,92902.0,92889.0,0.7116157]
[1765318247451,0.0107642,92902.0,92889.0,1.2135757]
[1765318247654,0.05,92901.0,92889.0,1.2135757]
[1765318248154,0.0107645,92899.0,92889.0,1.2135757]
[1765318248949,0.00207655,92890.0,92889.0,1.2135757]
[1765318249555,0.05,92901.0,92900.0,0.65519]
[1765318249753,0.0107626,92916.0,92900.0,0.65519]
[1765318250054,0.69528626,92915.0,92914.0,0.65519]
[1765318250256,0.69528626,92915.0,92898.0,0.50192]
[1765318250257,0.69421,92901.0,92900.0,0.6659543]
[1765318250656,0.3608,92910.0,92909.0,0.6659534]
[1765318250961,0.69421,92910.0,92909.0,0.6659534]
[1765318251752,0.05107626,92915.0,92914.0,0.65519]
[1765318251753,0.74528626,92915.0,92914.0,0.65519]
[1765318251955,0.05107626,92915.0,92914.0,0.65519]
[1765318252152,0.00207626,92915.0,92914.0,0.65519]
[1765318252355,0.00069363,92915.0,92914.0,1.06519]
[1765318252558,0.00107597,92940.0,92927.0,0.6659513]
[1765318252757,0.05,92935.0,92927.0,1.1678313]
[1765318253557,0.00107597,92940.0,92927.0,1.1678313]
[1765318253950,0.00107597,92940.0,92927.0,0.6659513]
[1765318254155,0.05,92939.0,92927.0,1.15703]
[1765318254459,0.05,92939.0,92927.0,1.15803]
[1765318254664,0.05,92939.0,92927.0,1.23803]
[1765318254967,0.0235865,92928.0,92927.0,1.23803]
[1765318255262,0.00107597,92940.0,92939.0,0.6659499]
[1765318255470,0.00107597,92940.0,92939.0,1.1677499]
[1765318255964,0.35682597,92940.0,92939.0,1.15699]
[1765318256358,0.69528597,92940.0,92939.0,1.15699]
[1765318256564,0.69528597,92940.0,92939.0,1.15799]
[1765318257162,0.00107597,92940.0,92939.0,1.15999]
[1765318257356,0.69528597,92940.0,92939.0,0.65819]
[1765318257557,0.69528597,92940.0,92939.0,1.15991]
[1765318258068,0.69528597,92940.0,92939.0,0.65819]
[1765318258369,0.69528597,92940.0,92939.0,0.33186]
[1765318258667,0.69528597,92940.0,92939.0,0.65819]
[1765318258872,0.69528597,92940.0,92939.0,0.003]
[1765318259762,0.69528597,92940.0,92939.0,0.33186]
[1765318260461,0.69528597,92940.0,92939.0,0.003]
[1765318261363,0.69528597,92940.0,92939.0,0.33186]
[1765318261560,0.69421,92934.0,92933.0,0.6659505]
[1765318262062,0.69421,92934.0,92925.0,0.21054]
[1765318262063,0.00307597,92940.0,92939.0,0.6659499]
[1765318262267,0.69728597,92940.0,92939.0,0.0107599]
[1765318262453,0.69628597,92940.0,92939.0,0.3396199]
[1765318262654,0.69628597,92940.0,92939.0,0.32886]
[1765318262854,0.69628597,92940.0,92939.0,0.6659499]
[1765318263054,0.69628597,92940.0,92939.0,0.65519]
[1765318263280,0.69528597,92940.0,92939.0,0.32886]
[1765318263569,0.69528597,92940.0,92939.0,0.6659499]
[1765318264068,0.69528597,92940.0,92939.0,0.3406199]
[1765318264272,1.05608597,92940.0,92939.0,0.001]
[1765318264460,0.69421,92935.0,92934.0,0.3396205]
[1765318264954,0.69421,92935.0,92925.0,0.21054]
[1765318264955,0.69421,92926.0,92925.0,0.65519]
[1765318265359,0.70923,92919.0,92918.0,0.00016148]
[1765318265558,0.70923,92919.0,92918.0,0.32932148]
[1765318265559,1.07003,92919.0,92918.0,0.32932148]
[1765318265775,1.07003,92919.0,92918.0,0.00016148]
[1765318265960,0.70923,92919.0,92918.0,0.00016148]
[1765318266356,1.43083,92919.0,92918.0,0.00016148]
[1765318268566,1.43083,92919.0,92917.0,0.0107624]
[1765318268567,0.70923,92895.0,92894.0,0.0386537]
[1765318268772,0.14727,92907.0,92897.0,0.66485]
[1765318268977,0.70923,92893.0,92892.0,0.66485]
[1765318269167,0.70923,92893.0,92892.0,0.6756154]
[1765318270376,0.70923,92893.0,92892.0,0.6766154]
[1765318270671,0.70923,92893.0,92892.0,0.6756154]
[1765318270872,0.70923,92893.0,92892.0,0.6786154]
[1765318271260,0.37987,92898.0,92897.0,0.6756148]
[1765318271458,0.02,92898.0,92897.0,0.6756148]
[1765318271663,0.3608,92899.0,92898.0,0.87318]
[1765318271971,0.3608,92899.0,92892.0,0.003]
[1765318271972,0.7199952,92893.0,92892.0,0.003]
[1765318272175,0.7399952,92893.0,92892.0,0.003]
[1765318272363,0.7399952,92893.0,92883.0,0.09985148]
[1765318272364,0.7199963,92884.0,92883.0,0.09985148]
[1765318272564,0.7199981,92868.0,92867.0,0.00012088]
[1765318273277,0.70923,92866.0,92865.0,0.00107684]
[1765318273874,0.15055,92870.0,92856.0,0.00016148]
[1765318273875,0.7199994,92857.0,92856.0,0.00016148]
[1765318274267,0.72011711,92857.0,92856.0,0.00016148]
[1765318274470,0.72011711,92857.0,92836.0,0.0386537]
[1765318274471,0.70923,92847.0,92846.0,0.0107706]
[1765318274969,0.70923,92847.0,92846.0,0.3399306]
[1765318275762,0.70923,92847.0,92846.0,0.6776206]
[1765318275967,0.36003148,92856.0,92855.0,0.66485]
[1765318276274,0.70939148,92856.0,92855.0,0.6756196]
[1765318276675,1.07019148,92856.0,92855.0,0.6756196]
[1765318279564,0.00016148,92856.0,92855.0,0.6756196]
[1765318279975,0.00016148,92856.0,92855.0,0.6766196]
[1765318280682,0.00016148,92856.0,92855.0,0.66585]
[1765318280683,0.69945148,92856.0,92855.0,0.66585]
[1765318280975,0.69945148,92856.0,92855.0,0.66685]
[1765318281574,0.69929,92853.0,92852.0,0.3608]
[1765318281773,0.69929,92850.0,92849.0,0.3471202]
[1765318281968,0.69929,92850.0,92849.0,0.6987102]
[1765318282170,0.3608,92854.0,92853.0,0.68794]
[1765318282373,1.06009,92854.0,92853.0,0.68794]
[1765318282578,0.3608,92854.0,92853.0,0.68794]
[1765318282780,0.00016148,92856.0,92855.0,0.68794]
[1765318283083,4.058e-05,92856.0,92855.0,0.68894]
[1765318283267,4.058e-05,92856.0,92855.0,0.68994]
[1765318283782,0.69933058,92856.0,92855.0,0.68994]
[1765318283983,0.69933058,92856.0,92855.0,0.68894]
[1765318284282,0.69933058,92856.0,92855.0,0.68994]
[1765318284985,0.69933058,92856.0,92855.0,0.001]
[1765318285679,0.69933058,92856.0,92855.0,0.004]
[1765318286274,0.34176,92846.0,92829.0,0.25776155]
[1765318286471,0.69929,92844.0,92843.0,0.0107709]
[1765318286665,0.34079018,92850.0,92829.0,0.21910785]
[1765318286666,0.8952,92840.0,92839.0,0.33635]
[1765318286872,0.69929,92838.0,92829.0,0.0107725]
[1765318287174,0.69929,92838.0,92837.0,0.00016148]
[1765318287175,0.69941481,92838.0,92837.0,0.00016148]
[1765318287379,1.06021481,92838.0,92837.0,0.00016148]
[1765318287977,1.06021481,92838.0,92837.0,0.00116148]
[1765318288176,1.06021481,92838.0,92837.0,0.33751148]
[1765318288689,1.06021481,92838.0,92837.0,0.68910148]
[1765318289174,1.06021481,92838.0,92837.0,0.69110148]
[1765318290277,1.06021481,92838.0,92837.0,0.69210148]
[1765318290468,1.06021481,92838.0,92837.0,0.69010148]
[1765318290672,1.06021481,92838.0,92837.0,0.69210148]
[1765318290979,1.06021481,92838.0,92837.0,0.00416148]
[1765318291180,1.06021481,92838.0,92837.0,0.00516148]
[1765318292272,1.06021481,92838.0,92837.0,0.00416148]
[1765318292675,1.06021481,92838.0,92837.0,0.69010148]
[1765318292881,1.06021481,92838.0,92837.0,0.33951148]
[1765318293280,1.06021481,92838.0,92837.0,0.00316148]
[1765318293976,0.7100625,92830.0,92829.0,0.0107726]
[1765318294285,0.69929,92816.0,92815.0,0.33742742]
[1765318294475,1.0601826,92816.0,92815.0,0.68901742]
[1765318294679,9.26e-05,92816.0,92815.0,0.68901742]
[1765318295683,9.26e-05,92816.0,92815.0,1.05901742]
[1765318296274,9.26e-05,92816.0,92815.0,0.68901742]
[1765318297087,9.26e-05,92816.0,92815.0,0.69101742]
[1765318297783,9.26e-05,92816.0,92815.0,0.68901742]
[1765318297976,9.26e-05,92816.0,92815.0,1.19317742]
[1765318298482,9.26e-05,92816.0,92815.0,1.19517742]
[1765318299277,0.3576226,92816.0,92815.0,0.69101742]
[1765318300877,0.3576226,92816.0,92815.0,0.68901742]
[1765318301587,0.6993826,92816.0,92815.0,0.68901742]
[1765318302382,0.6993826,92816.0,92815.0,0.00107742]
[1765318302584,0.6993826,92816.0,92815.0,1.19117742]
[1765318305190,1.0601826,92816.0,92815.0,0.00107742]
[1765318306988,1.0601826,92816.0,92815.0,0.00207742]
[1765318307786,1.0601826,92816.0,92815.0,0.00307742]
[1765318308287,1.0601826,92816.0,92815.0,0.00207742]
[1765318308685,1.0601826,92816.0,92808.0,0.00010043]
[1765318308888,0.701335,92809.0,92808.0,0.00010043]
[1765318309684,0.0107769,92793.0,92790.0,0.00107771]
[1765318309887,1.03638,92791.0,92790.0,0.66330771]
[1765318310189,1.03638,92791.0,92790.0,0.33746771]
[1765318310385,1.03638,92791.0,92790.0,0.00107771]
[1765318310694,1.03651121,92791.0,92790.0,0.00107771]
[1765318311579,1.03651121,92791.0,92790.0,0.00307771]
[1765318311781,1.03651121,92791.0,92790.0,0.67608491]
[1765318313089,0.36093121,92791.0,92790.0,0.87647491]
[1765318313290,0.00013121,92791.0,92790.0,0.87647491]
[1765318313689,0.67571121,92791.0,92790.0,0.87647491]
[1765318314496,0.67571121,92791.0,92790.0,0.00307771]
[1765318314497,0.68648831,92791.0,92790.0,0.00307771]
[1765318315284,1.04728831,92791.0,92790.0,0.00307771]
[1765318318489,1.03651121,92791.0,92790.0,0.66530771]
[1765318319596,1.03651121,92791.0,92790.0,0.33946771]
[1765318320797,0.00013121,92791.0,92790.0,0.86569771]
[1765318320989,0.00013121,92791.0,92790.0,1.22649771]
[1765318321185,0.67571121,92791.0,92790.0,1.22649771]
[1765318321590,0.00013121,92791.0,92790.0,1.22649771]
[1765318322185,0.67558,92800.0,92799.0,0.6730061]
[1765318322894,0.67558,92800.0,92790.0,0.56426771]
[1765318322895,0.67558,92804.0,92803.0,0.6730057]
[1765318323099,0.67567685,92804.0,92803.0,0.6730057]
[1765318325490,0.67567685,92804.0,92803.0,0.6750057]
[1765318325691,0.67567685,92804.0,92803.0,0.002]
[1765318326192,0.67567685,92804.0,92790.0,0.86403771]
[1765318326193,0.7219271,92791.0,92790.0,0.36187771]
[1765318326388,0.7219271,92791.0,92790.0,0.00107771]
[1765318327790,0.7219271,92791.0,92790.0,0.00207771]
[1765318328499,0.35938,92788.0,92787.0,0.6992775]
[1765318328700,0.71115,92800.0,92799.0,0.6885]
[1765318329003,0.71115,92800.0,92799.0,0.84705]
[1765318329205,1.07195,92800.0,92799.0,0.8578261]
[1765318329589,0.3608,92800.0,92799.0,0.8578261]
[1765318329799,9.685e-05,92804.0,92803.0,0.6992757]
[1765318331000,0.35947685,92804.0,92803.0,0.6992757]
[1765318331703,0.71224685,92804.0,92803.0,0.6992757]
[1765318333098,0.71124685,92804.0,92803.0,0.6992757]
[1765318333287,0.71224685,92804.0,92803.0,0.6992757]
[1765318333487,0.71224685,92804.0,92803.0,0.6885]
[1765318333488,0.72302245,92804.0,92803.0,0.6885]
[1765318333696,0.71224685,92804.0,92803.0,0.6992757]
[1765318333900,0.71124685,92804.0,92803.0,0.6885]
[1765318334091,0.71124685,92804.0,92803.0,0.6895]
[1765318334797,9.685e-05,92804.0,92803.0,0.6895]
[1765318334998,9.685e-05,92804.0,92803.0,1.1095]
[1765318335202,9.685e-05,92804.0,92803.0,0.6925]
[1765318335507,0.71124685,92804.0,92803.0,0.6925]
[1765318335889,0.71124685,92804.0,92803.0,0.6915]
[1765318336406,0.71124685,92804.0,92803.0,0.003]
[1765318336698,1.09476938,92804.0,92803.0,0.003]
[1765318337000,1.09476938,92804.0,92781.0,0.00016157]
[1765318337001,0.71115,92782.0,92781.0,0.00016157]
[1765318337196,0.71126493,92782.0,92781.0,0.00016157]
[1765318337599,1.07206493,92782.0,92781.0,0.00016157]
[1765318338206,0.71126493,92782.0,92781.0,0.00016157]
[1765318339211,0.71126493,92782.0,92781.0,0.35208157]
[1765318339507,0.71126493,92782.0,92781.0,0.68953157]
[1765318340203,0.71126493,92782.0,92781.0,0.00316157]
[1765318340505,0.71126493,92782.0,92781.0,0.68899157]
[1765318343405,0.71126493,92782.0,92781.0,0.00316157]
[1765318344016,1.07206493,92782.0,92781.0,0.00316157]
[1765318344996,1.07406493,92782.0,92781.0,0.00116157]
[1765318345196,0.70931,92766.0,92765.0,0.001078]
[1765318345410,1.07011,92766.0,92765.0,0.001078]
[1765318345612,1.07022493,92766.0,92765.0,0.001078]
[1765318345810,1.43102493,92766.0,92765.0,0.001078]
[1765318346006,1.43102493,92766.0,92748.0,0.00021542]
[1765318346007,0.70931,92749.0,92748.0,0.00021542]
[1765318346211,0.720092,92749.0,92748.0,0.01099752]
[1765318346404,0.70931,92749.0,92748.0,0.01099752]
[1765318347113,0.70931,92743.0,92740.0,0.00107829]
[1765318347316,0.19996,92750.0,92724.0,0.05804668]
[1765318347317,0.70931,92729.0,92724.0,0.05804668]
[1765318347504,0.70931,92719.0,92718.0,0.6966156]
[1765318348307,0.70941292,92719.0,92718.0,0.6966156]
[1765318348702,0.71041292,92719.0,92718.0,0.6966156]
[1765318349200,0.00110292,92719.0,92718.0,0.6966156]
[1765318349404,0.00210292,92719.0,92718.0,0.6966156]
[1765318351313,0.00110292,92719.0,92718.0,0.6966156]
[1765318354016,0.35144292,92719.0,92718.0,0.6966156]
[1765318354408,0.71041292,92719.0,92718.0,0.68583]
[1765318356016,0.70931,92716.0,92715.0,0.00107858]
[1765318356510,0.7200958,92716.0,92715.0,0.00107858]
[1765318356716,1.0808958,92716.0,92715.0,0.00107858]
[1765318357413,0.9204265,92710.0,92709.0,0.00016175]
[1765318358117,0.90964,92710.0,92709.0,0.00016175]
[1765318358511,0.90964,92710.0,92709.0,0.00216175]
[1765318360316,0.70931,92710.0,92709.0,0.68799175]
[1765318360705,0.90964,92710.0,92709.0,0.00216175]
[1765318367814,0.70931,92710.0,92709.0,0.68799175]
[1765318369516,0.3608,92716.0,92715.0,0.7014359]
[1765318369719,0.3608,92716.0,92709.0,0.00216175]
[1765318369720,0.7012765,92710.0,92709.0,0.00216175]
[1765318370624,0.7012765,92710.0,92690.0,0.69172887]
[1765318370625,0.7012787,92691.0,92690.0,0.69172887]
[1765318370925,0.69059754,92691.0,92690.0,0.77172887]
[1765318372623,0.69059754,92691.0,92690.0,0.77272887]
[1765318373029,0.89153754,92691.0,92690.0,0.43961887]
[1765318373225,0.89153754,92691.0,92690.0,0.77272887]
[1765318373921,0.89153754,92691.0,92690.0,0.08207887]
[1765318374948,0.89143,92682.0,92681.0,6.775e-05]
[1765318375123,0.9022197,92682.0,92681.0,0.35760775]
[1765318375332,0.9022197,92682.0,92681.0,0.69071775]
[1765318375517,0.9022197,92682.0,92681.0,0.35760775]
[1765318375722,0.9022197,92682.0,92681.0,6.775e-05]
[1765318376322,0.9022197,92682.0,92681.0,0.00406775]
[1765318376721,0.9022197,92682.0,92681.0,0.36160775]
[1765318376924,0.9022197,92682.0,92681.0,0.00406775]
[1765318379033,0.8464109,92672.0,92671.0,0.00010283]
[1765318379222,0.84653515,92672.0,92671.0,0.02010283]
[1765318379529,0.84653515,92672.0,92671.0,0.00010283]
[1765318379731,0.701283,92654.0,92653.0,0.3608]
[1765318379917,0.701283,92654.0,92653.0,0.09]
[1765318380123,0.69049,92642.0,92641.0,0.7014445]
[1765318380331,0.69049,92660.0,92659.0,0.0107923]
[1765318380521,0.69049,92660.0,92659.0,0.7014423]
[1765318380718,0.00016184,92663.0,92659.0,0.7014423]
[1765318380719,0.00016184,92663.0,92662.0,0.7014421]
[1765318380923,0.0002683,92663.0,92662.0,0.7014421]
[1765318381226,0.20094,92682.0,92662.0,0.7014421]
[1765318381227,0.69049,92679.0,92664.0,0.19813]
[1765318381419,0.69049,92679.0,92678.0,0.7014402]
[1765318381619,0.69049,92679.0,92678.0,0.69065]
[1765318381821,0.69049,92679.0,92670.0,0.19813]
[1765318381822,0.69049,92686.0,92685.0,0.7014394]
[1765318382027,0.69049,92686.0,92685.0,0.69065]
[1765318382232,0.69056759,92686.0,92685.0,0.69065]
[1765318382437,0.69056759,92686.0,92676.0,0.00016184]
[1765318382438,0.69049,92677.0,92676.0,0.00016184]
[1765318382626,0.001,92679.0,92678.0,0.69065]
[1765318382627,0.002,92679.0,92678.0,0.69065]
[1765318382925,0.001,92679.0,92678.0,0.69065]
[1765318383429,7.759e-05,92686.0,92678.0,0.69065]
[1765318383631,7.759e-05,92686.0,92685.0,0.69065]
[1765318383817,0.69056759,92686.0,92685.0,0.69065]
[1765318385940,0.69156759,92686.0,92685.0,0.69065]
[1765318386430,0.69356759,92686.0,92685.0,0.69065]
[1765318390221,0.00307759,92686.0,92685.0,0.69065]
[1765318390426,0.00307759,92686.0,92685.0,1.05145]
[1765318390826,0.67985184,92695.0,92694.0,0.6946]
[1765318391823,0.67985184,92695.0,92694.0,0.7053884]
[1765318391824,0.0002432,92695.0,92694.0,0.7053884]
[1765318392133,0.6829332,92695.0,92694.0,0.7053884]
[1765318392330,0.6849332,92695.0,92694.0,0.7053884]
[1765318393026,0.0052432,92695.0,92694.0,0.7053884]
[1765318394134,0.0032432,92695.0,92694.0,0.7053884]
[1765318394334,0.04206465,92701.0,92700.0,0.8694477]
[1765318394529,0.04206465,92701.0,92700.0,1.3722077]
[1765318394729,0.6904754,92720.0,92719.0,0.6946]
[1765318394936,1.1932343,92729.0,92728.0,0.6946]
[1765318395126,0.71305788,92729.0,92728.0,0.6946]
[1765318395331,0.71314074,92729.0,92728.0,0.6946]
[1765318395531,0.69055716,92729.0,92728.0,0.6946]
[1765318395931,1.05135716,92729.0,92728.0,0.6946]
[1765318396132,1.05135716,92729.0,92719.0,0.69476184]
[1765318396133,0.3419,92720.0,92719.0,0.69476184]
[1765318396332,0.0107845,92727.0,92726.0,0.6946]
[1765318396333,0.6904745,92727.0,92726.0,0.6946]
[1765318397733,0.6904745,92727.0,92726.0,0.6966]
[1765318398240,0.6904745,92727.0,92726.0,0.6956]
[1765318398534,0.9046645,92727.0,92726.0,0.35032]
[1765318398738,0.36088286,92729.0,92728.0,0.68745]
[1765318399136,0.69168286,92729.0,92728.0,0.68745]
[1765318399329,0.0107827,92743.0,92728.0,0.68745]
[1765318399528,0.3608,92746.0,92728.0,0.68745]
[1765318399529,0.66335184,92738.0,92737.0,0.6982333]
[1765318400540,0.66335184,92738.0,92737.0,0.68745]
[1765318401126,0.66435184,92738.0,92737.0,0.68745]
[1765318401842,0.00016184,92738.0,92737.0,0.68745]
[1765318402038,0.33096184,92738.0,92737.0,0.68845]
[1765318402241,0.00016184,92738.0,92737.0,0.68845]
[1765318402538,0.33096184,92738.0,92737.0,0.68845]
[1765318402733,0.66335184,92738.0,92737.0,0.68845]
[1765318402929,0.00016184,92738.0,92737.0,0.68845]
[1765318403435,0.00216184,92738.0,92737.0,0.68845]
[1765318403640,0.00216184,92738.0,92737.0,0.68745]
[1765318404028,0.36062836,92746.0,92745.0,0.9021624]
[1765318404238,0.05766181,92786.0,92745.0,0.9021624]
[1765318404239,0.66319,92756.0,92755.0,0.68745]
[1765318404639,0.14554672,92780.0,92755.0,0.68745]
[1765318404640,0.3608,92775.0,92774.0,0.68745]
[1765318404953,0.3608,92783.0,92763.0,0.20393]
[1765318404954,0.3308,92776.0,92775.0,0.68745]
[1765318405140,0.66335176,92785.0,92784.0,0.68745]
[1765318405334,0.00016176,92785.0,92784.0,0.68745]
[1765318405534,0.66335176,92785.0,92784.0,0.68745]
[1765318407137,0.00016176,92785.0,92784.0,0.68845]
[1765318407344,0.00116176,92785.0,92784.0,0.68845]
[1765318407637,0.00116176,92785.0,92784.0,0.7002279]
[1765318408232,0.00116176,92785.0,92784.0,0.6992279]
[1765318409447,0.66335176,92785.0,92784.0,1.55177]
[1765318409632,0.66335176,92785.0,92784.0,1.19093]
[1765318409831,0.66335176,92785.0,92784.0,0.001]
[1765318410039,0.66335176,92785.0,92784.0,0.68745]
[1765318410354,0.66335176,92785.0,92784.0,0.69045]
[1765318411644,0.66535176,92785.0,92784.0,0.69045]
[1765318412740,0.66535176,92785.0,92784.0,0.35059]
[1765318412949,0.66335176,92785.0,92784.0,0.35059]
[1765318413944,0.66335176,92785.0,92784.0,0.35159]
[1765318415837,0.66335176,92785.0,92784.0,0.68945]
[1765318419339,0.00016176,92785.0,92784.0,0.89338]
[1765318419749,0.66335176,92785.0,92784.0,0.89338]
[1765318420736,0.66335176,92785.0,92784.0,0.68945]
[1765318420944,0.66335176,92785.0,92784.0,0.7002279]
[1765318421547,0.66335176,92785.0,92784.0,0.3623679]
[1765318421745,0.66335176,92785.0,92784.0,0.35159]
[1765318422051,0.66335176,92785.0,92784.0,0.68945]
[1765318422642,0.00016176,92785.0,92784.0,0.89338]
[1765318426855,0.66335176,92785.0,92784.0,0.89338]
[1765318427051,0.66335176,92785.0,92784.0,1.19169]
[1765318428349,0.66335176,92785.0,92784.0,1.19069]
[1765318428556,0.66335176,92785.0,92784.0,1.39462]
[1765318428941,0.66335176,92785.0,92784.0,0.35059]
[1765318429140,0.66335176,92785.0,92784.0,0.681]
[1765318429852,0.66335176,92785.0,92784.0,0.68]
[1765318430052,0.66335176,92785.0,92784.0,0.681]
[1765318430452,0.66335176,92785.0,92784.0,0.002]
[1765318430844,0.66335176,92785.0,92784.0,0.68164]
[1765318431357,0.66335176,92785.0,92784.0,0.68064]
[1765318431559,0.66335176,92785.0,92784.0,0.68164]
[1765318432053,0.66335176,92785.0,92784.0,0.68064]